bitfinex/quotes_ETHUSD_20240916
["timestamp","ask_amount","ask_price","bid_price","bid_amount"]
[1726521971691,0.8437353,2291.0,2290.8,4.36518]
[1726521976526,0.8437353,2291.0,2290.9,0.10058124]
[1726521977986,0.8437353,2291.0,2290.9,4.46567124]
[1726521980434,0.45722995,2291.1,2290.9,4.46567124]
[1726521985847,0.45722995,2291.1,2291.0,11.1309]
[1726521986048,0.45722995,2291.1,2291.0,11.23134875]
[1726521987747,0.45722995,2291.1,2291.0,6.86644875]
[1726521988042,2.3187,2291.4,2291.1,4.36468]
[1726521988235,5.3187,2291.4,2291.1,4.36468]
[1726521988435,5.3187,2291.4,2291.2,0.1001708]
[1726521988754,0.03000005,2291.3,2291.2,0.1001708]
[1726521990328,0.68621,2291.3,2291.2,0.1001708]
[1726521993842,0.65620995,2291.3,2291.2,0.1001708]
[1726521994871,1.21339949,2291.5,2291.2,0.1001708]
[1726521994872,1.21339949,2291.5,2291.3,4.36433]
[1726521995229,2.3187,2291.6,2291.4,0.09990589]
[1726521996161,2.3187,2291.6,2291.4,4.46401589]
[1726521996369,2.3187,2291.6,2291.4,4.36411]
[1726521996533,3.0,2291.7,2291.5,0.09977345]
[1726521996735,0.96371887,2291.6,2291.5,0.09977345]
[1726521999752,2.3411,2291.4,2291.0,4.3648]
[1726521999964,0.26411005,2291.3,2291.0,4.3648]
[1726522000166,0.03000005,2291.2,2290.9,4.36492]
[1726522000488,2.3411,2291.1,2290.7,4.36534]
[1726522000644,0.85521104,2291.0,2290.7,4.36534]
[1726522000958,2.37110005,2291.1,2290.8,4.36518]
[1726522001979,2.3411,2291.1,2290.8,4.36518]
[1726522003645,2.79825522,2291.1,2290.8,4.36518]
[1726522007582,2.79825522,2291.1,2290.9,0.09709538]
[1726522007817,0.46447457,2291.0,2290.9,0.09709538]
[1726522013801,0.46447457,2291.0,2290.7,4.36534]
[1726522014135,0.46447457,2291.0,2290.8,0.09735768]
[1726522014642,0.46447457,2291.0,2290.7,4.36534]
[1726522014837,0.46447457,2291.0,2290.6,2.3257]
[1726522014838,2.3411,2291.1,2290.9,4.36509]
[1726522015143,2.3411,2291.1,2290.9,4.36508]
[1726522015299,2.3411,2291.1,2291.0,0.09709268]
[1726522015498,0.03000005,2291.2,2291.0,0.09709268]
[1726522015943,3.03000005,2291.2,2291.0,0.09709268]
[1726522023162,3.03000005,2291.2,2290.8,8.73046]
[1726522023361,3.03000005,2291.2,2290.8,4.36519]
[1726522023362,1.16083404,2291.1,2290.8,4.36519]
[1726522023964,1.16083404,2291.1,2290.8,8.73039]
[1726522024226,5.48060005,2291.0,2290.6,8.7311]
[1726522024498,5.48060005,2291.0,2290.6,4.36552]
[1726522024703,5.48060005,2291.0,2290.6,8.73109]
[1726522025009,5.48060005,2291.0,2290.6,4.36552]
[1726522025311,1.16618904,2290.9,2290.6,8.73111]
[1726522025479,0.03000005,2290.8,2290.6,8.7311]
[1726522025663,0.03000005,2290.8,2290.6,4.36552]
[1726522025862,0.03000005,2290.8,2290.6,8.7311]
[1726522026063,0.03000005,2290.8,2290.6,4.36552]
[1726522027201,0.03000005,2290.8,2290.6,8.7311]
[1726522027565,0.03000005,2290.8,2290.6,4.36552]
[1726522030016,0.03000005,2290.8,2290.4,6.72088]
[1726522030017,1.16618904,2290.9,2290.7,4.36547]
[1726522030313,9.84552005,2291.0,2290.5,4.36566]
[1726522032013,9.84552005,2291.0,2290.6,4.3656]
[1726522033309,3.0,2290.7,2290.3,4.36608]
[1726522033495,4.36538,2290.8,2290.5,4.36585]
[1726522033496,3.03000005,2290.8,2290.5,4.36585]
[1726522033805,3.88922709,2290.8,2290.5,4.36585]
[1726522035278,3.88922709,2290.8,2290.4,4.36603]
[1726522035279,8.25453709,2290.8,2290.4,4.36603]
[1726522035515,1.06347571,2290.7,2290.4,4.36603]
[1726522035720,1.06347571,2290.7,2290.0,4.36674]
[1726522035721,8.56265039,2290.6,2290.1,4.36647]
[1726522035908,5.3804,2290.3,2290.0,4.36679]
[1726522036512,5.3804,2290.3,2290.1,0.09858411]
[1726522036513,5.41040005,2290.3,2290.1,0.09858411]
[1726522036714,1.15929304,2290.2,2290.1,0.09858411]
[1726522037091,1.18929309,2290.2,2290.1,0.09858411]
[1726522037630,1.15929304,2290.2,2290.1,0.09858411]
[1726522039190,2.3804,2290.5,2290.1,4.46520411]
[1726522039388,3.0,2290.5,2290.2,6.6669]
[1726522039638,3.41134503,2290.5,2290.2,6.6669]
[1726522039806,3.41134503,2290.5,2290.3,0.09499665]
[1726522040314,0.41134503,2290.5,2290.4,0.09486408]
[1726522040471,0.41134503,2290.5,2290.2,6.66683]
[1726522040472,0.41134503,2290.5,2290.3,4.36621]
[1726522040673,4.11345032,2290.6,2290.4,4.46101663]
[1726522042338,0.03000005,2290.5,2290.4,0.09497663]
[1726522042492,4.36605,2290.4,2290.0,4.36666]
[1726522042693,6.21254044,2290.4,2289.9,6.62878]
[1726522042921,1.10171,2290.3,2290.1,4.3666]
[1726522045294,2.2552,2290.5,2290.1,4.3666]
[1726522046806,9.65115005,2290.5,2290.1,4.3666]
[1726522046991,14.01711005,2290.5,2290.1,4.3666]
[1726522048097,14.01711005,2290.5,2290.0,4.36678]
[1726522048305,3.0,2290.3,2290.0,4.36678]
[1726522048989,3.03000005,2290.3,2290.0,4.36678]
[1726522049516,6.87792005,2290.2,2289.8,4.36717]
[1726522049841,7.75769616,2290.2,2289.8,4.36717]
[1726522050000,12.12421616,2290.2,2289.8,4.36717]
[1726522050206,7.75769616,2290.2,2289.7,6.65022]
[1726522050405,5.87905162,2290.1,2289.7,6.65022]
[1726522051291,1.51242162,2290.1,2289.8,4.36715]
[1726522051533,1.51242162,2290.1,2289.8,0.09606653]
[1726522051893,1.54242167,2290.1,2289.8,0.09606653]
[1726522052124,4.28419039,2290.0,2289.8,0.09606653]
[1726522052298,6.83501,2289.8,2289.5,0.0375045]
[1726522052633,0.03000005,2289.7,2289.5,0.0375045]
[1726522053130,8.65176039,2289.6,2289.5,0.0375045]
[1726522053316,9.51993643,2289.6,2289.5,0.0375045]
[1726522053694,9.51993643,2289.6,2289.5,0.1340166]
[1726522059532,13.88750643,2289.6,2289.5,0.1340166]
[1726522059834,21.80507643,2289.6,2289.5,0.1340166]
[1726522060357,21.80507643,2289.6,2289.5,0.0375045]
[1726522061179,22.26246336,2289.6,2289.5,0.0375045]
[1726522065871,17.89489336,2289.6,2289.5,0.0375045]
[1726522066060,17.34489336,2289.6,2289.5,0.0375045]
[1726522066492,17.34489336,2289.6,2289.5,0.13497394]
[1726522067880,17.34489336,2289.6,2289.5,0.0375045]
[1726522068082,15.52840297,2289.6,2289.5,0.0375045]
[1726522068283,17.34489336,2289.6,2289.5,0.0375045]
[1726522068681,17.34489336,2289.6,2289.5,0.13489158]
[1726522073371,17.34489336,2289.6,2289.5,0.0375045]
[1726522074523,22.26246336,2289.6,2289.5,0.13506057]
[1726522074684,20.44597297,2289.6,2289.5,0.0375045]
[1726522074872,22.26246336,2289.6,2289.5,0.0375045]
[1726522077679,24.22246336,2289.6,2289.5,0.0375045]
[1726522077877,19.85489336,2289.6,2289.5,0.0375045]
[1726522079515,19.30489336,2289.6,2289.5,0.0375045]
[1726522080041,19.30489336,2289.6,2289.5,0.13509091]
[1726522081915,19.85489336,2289.6,2289.5,0.13509091]
[1726522082323,19.85489336,2289.6,2289.5,0.0375045]
[1726522082631,24.22246336,2289.6,2289.5,0.0375045]
[1726522090021,22.40597297,2289.6,2289.5,0.0375045]
[1726522090251,19.85489336,2289.6,2289.5,0.0375045]
[1726522090552,24.22246336,2289.6,2289.5,0.0375045]
[1726522100731,18.03840297,2289.6,2289.5,0.0375045]
[1726522100931,24.22246336,2289.6,2289.5,0.0375045]
[1726522105446,26.77354297,2289.6,2289.5,0.0375045]
[1726522105645,24.22246336,2289.6,2289.5,0.0375045]
[1726522106282,22.40597297,2289.6,2289.5,0.0375045]
[1726522106492,24.22246336,2289.6,2289.5,0.0375045]
[1726522106663,28.59003336,2289.6,2289.5,0.0375045]
[1726522106864,24.22246336,2289.6,2289.5,0.0375045]
[1726522107197,28.59003336,2289.6,2289.5,0.0375045]
[1726522107899,24.22246336,2289.6,2289.5,0.0375045]
[1726522109767,22.40597297,2289.6,2289.5,0.0375045]
[1726522109964,24.22246336,2289.6,2289.5,0.0375045]
[1726522115185,28.59003336,2289.6,2289.5,0.0375045]
[1726522115498,24.22246336,2289.6,2289.5,0.0375045]
[1726522115860,28.59003336,2289.6,2289.5,0.0375045]
[1726522116183,24.22246336,2289.6,2289.5,0.0375045]
[1726522116565,28.59003336,2289.6,2289.5,0.0375045]
[1726522117088,26.77354297,2289.6,2289.5,0.0375045]
[1726522117312,28.59003336,2289.6,2289.5,0.0375045]
[1726522118523,33.19603336,2289.6,2289.5,0.0375045]
[1726522118721,29.5258341,2289.6,2289.5,0.0375045]
[1726522119020,28.59003336,2289.6,2289.5,0.0375045]
[1726522119595,22.40597297,2289.6,2289.5,0.0375045]
[1726522119809,26.77354297,2289.6,2289.5,0.0375045]
[1726522120012,28.59003336,2289.6,2289.5,0.0375045]
[1726522122622,29.5258341,2289.6,2289.5,0.0375045]
[1726522123080,28.59003336,2289.6,2289.5,0.0375045]
[1726522125523,29.5258341,2289.6,2289.5,0.0375045]
[1726522128489,34.1318341,2289.6,2289.5,0.0375045]
[1726522128705,29.5258341,2289.6,2289.5,0.0375045]
[1726522139835,27.70934371,2289.6,2289.5,0.0375045]
[1726522140029,29.5258341,2289.6,2289.5,0.0375045]
[1726522143178,27.70934371,2289.6,2289.5,0.0375045]
[1726522143527,28.59003336,2289.6,2289.5,0.0375045]
[1726522144148,29.5258341,2289.6,2289.5,0.0375045]
[1726522148139,27.70934371,2289.6,2289.5,0.0375045]
[1726522148344,29.5258341,2289.6,2289.5,0.0375045]
[1726522151389,27.70934371,2289.6,2289.5,0.0375045]
[1726522151601,29.5258341,2289.6,2289.5,0.0375045]
[1726522153992,25.24164371,2289.6,2289.5,0.0375045]
[1726522154175,27.0581341,2289.6,2289.5,0.0375045]
[1726522157773,27.0581341,2289.6,2289.3,1.32944188]
[1726522157774,21.0218,2289.4,2289.3,1.32944188]
[1726522158093,22.83829039,2289.4,2289.3,1.32944188]
[1726522159592,8.73782,2288.9,2288.8,0.0375045]
[1726522159793,14.42809239,2288.9,2288.8,0.0375045]
[1726522160156,13.55431039,2288.9,2288.8,0.0375045]
[1726522160391,14.01170752,2288.9,2288.8,0.0375045]
[1726522160897,14.01170752,2288.9,2288.8,2.0251045]
[1726522162676,12.19521713,2288.9,2288.8,2.0251045]
[1726522162877,7.82630713,2288.9,2288.8,2.0251045]
[1726522163297,7.82630713,2288.9,2288.8,2.12385392]
[1726522164668,7.82630713,2288.9,2288.8,2.0251045]
[1726522164985,12.19521713,2288.9,2288.8,2.12385392]
[1726522167797,14.01170752,2288.9,2288.8,2.12385392]
[1726522167972,15.84973427,2288.9,2288.8,2.12385392]
[1726522168312,15.84973427,2288.9,2288.8,2.0251045]
[1726522169411,15.84973427,2288.9,2288.8,2.12386692]
[1726522169567,14.01170752,2288.9,2288.8,2.12386692]
[1726522169980,12.19521713,2288.9,2288.8,2.12386692]
[1726522170180,14.01170752,2288.9,2288.8,2.12386692]
[1726522172477,12.19521713,2288.9,2288.8,2.12386692]
[1726522174722,12.19521713,2288.9,2288.8,2.0251045]
[1726522175081,12.19521713,2288.9,2288.8,2.12391894]
[1726522176903,12.19521713,2288.9,2288.8,2.0251045]
[1726522177427,12.19521713,2288.9,2288.8,2.12391894]
[1726522178001,15.84973127,2288.9,2288.8,2.12391894]
[1726522178219,15.84973127,2288.9,2288.8,2.0251045]
[1726522179410,14.01170752,2288.9,2288.8,2.0251045]
[1726522179728,14.01170752,2288.9,2288.8,2.1239016]
[1726522180816,14.01170752,2288.9,2288.8,2.0251045]
[1726522183035,7.82630713,2288.9,2288.8,2.0251045]
[1726522183294,7.82630713,2288.9,2288.8,2.1239146]
[1726522183493,9.22745888,2288.9,2288.8,2.1239146]
[1726522187915,13.59636888,2288.9,2288.8,2.1239146]
[1726522188121,9.22745888,2288.9,2288.8,2.1239146]
[1726522188321,9.22745888,2288.9,2288.8,2.0251045]
[1726522189057,9.22745888,2288.9,2288.8,2.12386691]
[1726522190124,13.59636888,2288.9,2288.8,2.12386691]
[1726522190351,13.59636888,2288.9,2288.8,0.13626691]
[1726522190652,13.59636888,2288.9,2288.8,0.0375045]
[1726522191618,13.59636888,2288.9,2288.8,0.13630159]
[1726522193789,9.22745888,2288.9,2288.8,0.13630159]
[1726522196753,9.22745888,2288.9,2288.8,2.12390159]
[1726522202295,9.22745888,2288.9,2288.8,0.13630159]
[1726522203090,13.59636888,2288.9,2288.8,0.13630159]
[1726522203295,9.22745888,2288.9,2288.8,0.13630159]
[1726522205798,3.45739713,2288.9,2288.8,0.13630159]
[1726522206011,0.45739713,2288.9,2288.8,2.12390159]
[1726522206370,3.45739713,2288.9,2288.8,2.12390159]
[1726522207094,0.45739713,2288.9,2288.8,2.12390159]
[1726522207399,3.0,2289.0,2288.8,2.12390159]
[1726522207908,0.45739502,2289.2,2288.8,2.12390159]
[1726522208051,0.45739502,2289.2,2289.1,4.36852]
[1726522208258,0.45739502,2289.2,2288.8,0.13630159]
[1726522208259,20.62312357,2289.8,2289.5,4.36772]
[1726522208573,6.32613,2290.4,2289.9,1.9876]
[1726522208574,9.10399489,2290.3,2289.9,1.9876]
[1726522208779,6.18246039,2290.5,2289.9,1.9876]
[1726522208973,10.54848039,2290.5,2289.9,1.9876]
[1726522209275,0.45731011,2290.4,2290.1,1.9876]
[1726522209490,0.45731011,2290.4,2290.2,4.36629]
[1726522212057,3.45731011,2290.4,2290.1,1.9876]
[1726522214914,6.18273039,2290.3,2290.1,1.9876]
[1726522215118,6.18273039,2290.3,2289.9,1.9876]
[1726522215623,10.54907039,2290.3,2289.9,1.9876]
[1726522215923,6.18311039,2290.1,2289.7,1.9876]
[1726522216138,10.54985039,2290.1,2289.7,1.9876]
[1726522216427,6.18311039,2290.1,2289.7,1.9876]
[1726522217183,10.54983039,2290.1,2289.7,1.9876]
[1726522217595,6.18311039,2290.1,2289.7,1.9876]
[1726522218122,6.18311039,2290.1,2289.8,0.09653411]
[1726522219332,3.0,2290.2,2289.8,4.46371411]
[1726522219485,7.36646,2290.2,2289.8,4.46371411]
[1726522220299,8.76712005,2290.2,2289.8,0.09653411]
[1726522222541,7.367,2289.9,2289.8,0.09653411]
[1726522224646,13.55049039,2289.9,2289.8,0.09653411]
[1726522224998,4.36765,2289.6,2289.3,1.9876]
[1726522225552,4.36844,2289.2,2288.9,1.9876]
[1726522225838,6.18493039,2289.2,2288.8,0.0375045]
[1726522227347,6.21493044,2289.2,2288.8,0.0375045]
[1726522227548,6.18493039,2289.2,2288.8,0.0375045]
[1726522227703,4.36855,2289.1,2288.8,0.0375045]
[1726522228236,7.48288943,2289.2,2288.8,0.0375045]
[1726522228401,6.18493039,2289.2,2288.8,0.0375045]
[1726522230153,3.0,2289.3,2288.8,4.4065345]
[1726522230516,7.36815,2289.3,2288.9,0.09781061]
[1726522230717,8.96307604,2289.3,2288.9,0.09781061]
[1726522231512,4.36835,2289.2,2288.9,0.09781061]
[1726522233413,3.0,2289.0,2288.9,0.09781061]
[1726522233731,7.36871,2289.0,2288.8,0.0375045]
[1726522234051,3.0,2288.9,2288.8,0.0375045]
[1726522234655,3.0,2289.0,2288.8,0.0375045]
[1726522235158,13.32749304,2289.0,2288.8,0.0375045]
[1726522235469,13.32748304,2289.0,2288.8,0.0375045]
[1726522236562,4.36891,2288.9,2288.8,0.0375045]
[1726522237059,7.36891,2288.9,2288.8,0.0375045]
[1726522238027,3.0,2288.9,2288.8,0.0375045]
[1726522238276,3.0,2289.0,2288.8,0.0375045]
[1726522239773,3.45736573,2289.0,2288.8,0.0375045]
[1726522241632,4.34528792,2289.0,2288.8,0.0375045]
[1726522243355,7.36891,2288.9,2288.8,0.0375045]
[1726522243982,7.36891,2288.9,2288.8,0.13588541]
[1726522244282,7.36891,2288.9,2288.8,0.0375045]
[1726522244453,7.36891,2288.9,2288.8,0.13588541]
[1726522244654,7.36891,2288.9,2288.8,0.0375045]
[1726522244876,9.00919961,2288.9,2288.8,0.13588541]
[1726522245072,9.00919961,2288.9,2288.8,0.0375045]
[1726522245275,9.00919961,2288.9,2288.8,0.13588541]
[1726522246361,13.37810961,2288.9,2288.8,0.13588541]
[1726522246688,9.00919961,2288.9,2288.8,0.13588541]
[1726522247390,9.00919961,2288.9,2288.8,0.0375045]
[1726522247794,9.00919961,2288.9,2288.8,0.13588541]
[1726522248851,9.00919961,2288.9,2288.8,0.0375045]
[1726522249688,1.64028961,2288.9,2288.8,0.0375045]
[1726522249905,3.45736573,2289.0,2288.8,0.0375045]
[1726522250396,3.45736573,2289.0,2288.9,0.09824818]
[1726522251976,0.45736573,2289.0,2288.9,0.09824818]
[1726522252673,4.82607573,2289.0,2288.9,0.09824818]
[1726522252902,7.82607573,2289.0,2288.9,0.09824818]
[1726522253113,9.46633234,2289.0,2288.9,0.09824818]
[1726522256909,7.36891,2288.9,2288.8,0.0375045]
[1726522257672,13.55431039,2288.9,2288.8,0.0375045]
[1726522260921,9.18540039,2288.9,2288.8,0.0375045]
[1726522261225,8.93408527,2288.9,2288.8,0.13604144]
[1726522261521,8.93408527,2288.9,2288.8,0.13607612]
[1726522261820,13.30299527,2288.9,2288.8,0.13607612]
[1726522262178,13.30299527,2288.9,2288.8,0.0375045]
[1726522262831,8.93408527,2288.9,2288.8,0.0375045]
[1726522264501,15.71399527,2288.9,2288.8,0.0375045]
[1726522265912,15.71399527,2288.9,2288.8,0.13604144]
[1726522267735,15.71399527,2288.9,2288.8,0.0375045]
[1726522270706,0.45736573,2289.0,2288.8,0.0375045]
[1726522270929,9.19499573,2289.0,2288.9,0.09863833]
[1726522271301,4.82609573,2289.0,2288.9,0.09863833]
[1726522272398,7.82609573,2289.0,2288.9,0.09863833]
[1726522272821,3.0,2288.9,2288.8,0.0375045]
[1726522273521,3.0,2288.9,2288.8,0.13622787]
[1726522276152,14.955424,2288.9,2288.8,0.13622787]
[1726522276387,13.55431039,2288.9,2288.8,0.13622787]
[1726522282572,9.18540039,2288.9,2288.8,0.13622787]
[1726522282800,7.36891,2288.9,2288.8,0.13622787]
[1726522284179,7.36891,2288.9,2288.8,0.0375045]
[1726522284381,9.01813861,2288.9,2288.8,0.13619751]
[1726522284985,3.0,2288.9,2288.8,2.12379751]
[1726522285598,3.45736573,2289.0,2288.8,2.0251045]
[1726522285801,3.45736573,2289.0,2288.8,2.12374549]
[1726522287692,3.45736573,2289.0,2288.8,2.07374549]
[1726522288187,5.27385612,2289.0,2288.8,2.07374549]
[1726522288595,9.64259612,2289.0,2288.8,2.07374549]
[1726522290581,4.36891,2288.9,2288.8,0.09864099]
[1726522290781,7.36891,2288.9,2288.6,1.9752]
[1726522291003,7.36891,2288.9,2288.8,0.09858897]
[1726522291213,7.36891,2288.9,2288.6,1.9752]
[1726522291517,7.36891,2288.9,2288.8,0.0985196]
[1726522291715,7.36891,2288.9,2288.7,0.09865235]
[1726522291919,7.36891,2288.9,2288.8,0.0985196]
[1726522292307,7.36891,2288.9,2288.6,1.9752]
[1726522292501,7.36891,2288.9,2288.8,0.0985196]
[1726522292705,7.36891,2288.9,2288.6,1.9752]
[1726522292706,7.36891,2288.9,2288.7,0.09865235]
[1726522292907,7.36891,2288.9,2288.8,0.0985196]
[1726522293414,8.77006061,2288.9,2288.8,0.0985196]
[1726522293620,8.77006061,2288.9,2288.6,1.9752]
[1726522293954,8.77006061,2288.9,2288.8,0.0985196]
[1726522294072,8.77006061,2288.9,2288.7,0.09865235]
[1726522294279,8.77006061,2288.9,2288.6,1.9752]
[1726522294578,3.0,2288.9,2288.7,0.09865235]
[1726522295711,7.36897,2288.9,2288.7,0.09865235]
[1726522295917,4.3691,2288.8,2288.7,0.09865235]
[1726522296123,7.36897,2288.9,2288.7,0.09865235]
[1726522296310,7.36897,2288.9,2288.5,6.34471]
[1726522296505,7.36897,2288.9,2288.8,0.0985196]
[1726522296719,7.36897,2288.9,2288.5,6.34471]
[1726522297520,7.36897,2288.9,2288.6,0.09878512]
[1726522299821,7.36912,2288.8,2288.6,0.09878512]
[1726522302984,4.36929,2288.7,2288.6,0.09878512]
[1726522303527,7.36929,2288.7,2288.6,0.09878512]
[1726522303722,7.82674476,2288.7,2288.6,0.09878512]
[1726522306956,3.45745476,2288.7,2288.6,0.09878512]
[1726522308357,7.82674476,2288.7,2288.6,0.09878512]
[1726522308918,3.45745476,2288.7,2288.6,0.09878512]
[1726522314333,9.04632324,2288.7,2288.6,0.09878512]
[1726522314645,9.04632324,2288.7,2288.3,1.9752]
[1726522314829,3.0,2288.6,2288.3,6.34517]
[1726522315034,3.0,2288.6,2288.4,0.0873885]
[1726522315352,3.0,2288.6,2288.3,6.34517]
[1726522318119,3.0,2288.6,2288.4,4.36969]
[1726522318322,0.45745476,2288.7,2288.4,4.36818007]
[1726522318524,3.0,2288.5,2288.2,0.0375045]
[1726522318823,1.81649039,2288.4,2288.2,0.0375045]
[1726522320556,1.81649039,2288.4,2288.3,0.09605623]
[1726522320922,1.81649039,2288.4,2288.2,0.0375045]
[1726522321118,0.52738393,2288.3,2288.2,0.0375045]
[1726522322866,3.4573489,2288.5,2288.2,2.0127045]
[1726522323173,0.4573489,2288.5,2288.4,6.34506]
[1726522323466,0.4573489,2288.5,2288.4,1.9752]
[1726522328373,0.4573489,2288.5,2288.2,6.3829045]
[1726522328374,1.18516379,2288.5,2288.2,6.3829045]
[1726522328681,1.18516379,2288.5,2288.3,4.37005]
[1726522329989,1.18516379,2288.5,2288.2,0.0375045]
[1726522329990,1.81649039,2288.4,2288.2,0.0375045]
[1726522330209,10.50019642,2288.3,2288.2,0.0375045]
[1726522330495,20.39454337,2288.3,2288.2,0.0375045]
[1726522331055,20.39454337,2288.3,2287.5,0.0375045]
[1726522331056,11.13578,2287.6,2287.5,0.0375045]
[1726522331372,8.58088039,2287.6,2287.5,0.0375045]
[1726522331615,12.43896843,2287.6,2287.5,0.0375045]
[1726522331777,16.81035843,2287.6,2287.5,0.0375045]
[1726522332648,21.18174843,2287.6,2287.5,0.0375045]
[1726522332856,4.37206,2287.3,2286.7,1.950209]
[1726522333147,1.81649039,2287.0,2286.7,1.950209]
[1726522333963,3.0,2287.0,2286.7,1.950209]
[1726522334553,4.81649039,2287.2,2286.8,4.37292]
[1726522334758,4.81649039,2287.2,2286.7,6.323249]
[1726522335592,1.81649039,2287.5,2287.0,4.3724]
[1726522336000,1.81649039,2287.5,2287.1,2.04859875]
[1726522336497,8.20623088,2287.5,2287.1,2.04859875]
[1726522336699,3.0,2287.4,2287.1,1.9502]
[1726522336883,3.0,2287.4,2287.2,0.09818793]
[1726522337062,3.0,2287.4,2287.0,4.37253]
[1726522337258,5.28652154,2287.4,2287.3,0.09805501]
[1726522337569,5.28652154,2287.4,2287.0,4.37253]
[1726522337786,5.28652154,2287.4,2287.3,0.09805501]
[1726522337974,1.81649039,2287.3,2287.0,4.37253]
[1726522339760,1.81649039,2287.3,2287.0,4.37244]
[1726522340376,13.55977039,2287.5,2287.0,4.37244]
[1726522340601,10.15855039,2287.5,2287.0,4.37244]
[1726522340894,14.53024039,2287.5,2287.0,4.37244]
[1726522341461,1.81649039,2287.3,2287.0,4.37244]
[1726522341873,1.81649039,2287.3,2286.9,6.32291]
[1726522342082,4.30799039,2287.3,2286.9,4.37271]
[1726522345024,10.26194754,2287.3,2286.8,4.37289]
[1726522346711,0.45742014,2287.2,2286.8,4.37289]
[1726522346908,0.45742014,2287.2,2287.0,4.37252]
[1726522347113,0.45742014,2287.2,2287.1,15.06722]
[1726522347306,7.2875045,2288.1,2287.7,4.37112]
[1726522347613,8.59393039,2288.2,2287.8,0.09786984]
[1726522347818,8.59393039,2288.2,2287.7,4.37108]
[1726522348025,6.77744,2288.2,2287.7,4.37108]
[1726522348230,6.77744,2288.2,2287.8,0.09779629]
[1726522348401,6.77744,2288.2,2287.7,4.37108]
[1726522348611,3.0,2288.1,2287.8,0.09779629]
[1726522348797,3.0,2288.1,2287.7,4.37108]
[1726522349000,3.0,2288.1,2287.8,0.09779629]
[1726522349201,3.0,2288.1,2287.7,4.37108]
[1726522349722,3.0,2288.1,2287.8,0.09779629]
[1726522349891,3.0,2288.1,2287.7,4.37104]
[1726522350089,3.0,2288.1,2287.9,0.0974515]
[1726522350321,3.0,2288.1,2287.7,4.37104]
[1726522350529,3.0,2288.1,2288.0,0.09731866]
[1726522350731,3.0,2288.1,2287.7,4.37104]
[1726522350918,0.45739827,2288.3,2288.0,4.46781866]
[1726522351112,2.4212999,2288.5,2288.1,6.32048]
[1726522351344,2.4212999,2288.5,2288.1,6.41766583]
[1726522351541,0.45739605,2288.2,2288.1,6.41766583]
[1726522352806,0.45739605,2288.2,2288.1,10.78809583]
[1726522353401,0.45739605,2288.2,2288.1,15.15852583]
[1726522353605,0.0141999,2288.5,2288.4,8.73972]
[1726522353807,0.0141999,2288.5,2288.4,10.78630521]
[1726522359360,0.0141999,2288.5,2288.4,4.46624521]
[1726522359714,0.0141999,2288.5,2288.4,0.09638521]
[1726522360253,0.26302989,2288.5,2288.4,0.09638521]
[1726522365028,4.63269989,2288.5,2288.4,0.09638521]
[1726522365233,0.26302989,2288.5,2288.1,4.37032]
[1726522365442,0.26302989,2288.5,2288.2,0.09628338]
[1726522367576,4.63283989,2288.5,2288.2,0.09628338]
[1726522367732,1.54214786,2288.4,2288.2,0.09628338]
[1726522367935,1.54214786,2288.4,2288.0,4.37062]
[1726522368142,1.54214786,2288.4,2288.3,0.09622405]
[1726522368639,1.54214786,2288.4,2288.0,4.37062]
[1726522368859,1.54214786,2288.4,2288.1,0.09648968]
[1726522369781,0.26302989,2288.5,2288.2,4.37009]
[1726522370181,0.26302989,2288.5,2288.3,0.09623702]
[1726522370543,0.26302989,2288.5,2288.2,4.37009]
[1726522370744,0.26302989,2288.5,2288.4,0.09610422]
[1726522371282,0.26302989,2288.5,2288.2,4.37009]
[1726522371495,0.26302989,2288.5,2288.4,0.09610422]
[1726522371647,0.26302989,2288.5,2288.2,4.37009]
[1726522372000,0.26302989,2288.5,2288.3,0.09623702]
[1726522372287,0.26302989,2288.5,2288.2,4.37009]
[1726522372472,0.26302989,2288.5,2288.4,0.09610422]
[1726522372637,0.26302989,2288.5,2288.2,4.37009]
[1726522372839,0.0141999,2288.5,2288.3,0.09623702]
[1726522373041,0.0141999,2288.5,2288.2,4.37009]
[1726522373042,0.0141999,2288.5,2288.4,4.36986]
[1726522373243,0.0141999,2288.5,2288.4,4.46596422]
[1726522374545,0.0141999,2288.5,2288.4,8.83582422]
[1726522375244,6.43203861,2288.5,2288.4,0.09610422]
[1726522375445,4.36997,2288.4,2287.9,4.3707]
[1726522375646,11.49064831,2288.5,2288.0,0.09009864]
[1726522375886,5.51902483,2288.4,2288.0,0.09009864]
[1726522376093,6.84288,2288.3,2288.0,0.09009864]
[1726522376277,4.37025,2288.2,2287.7,4.37107]
[1726522376486,4.37025,2288.2,2288.1,0.09000458]
[1726522376787,5.60946949,2288.2,2287.7,8.74217]
[1726522376943,5.60946949,2288.2,2288.1,0.09000458]
[1726522377141,5.60946949,2288.2,2287.7,8.74217]
[1726522377389,5.60946949,2288.2,2288.1,0.09000458]
[1726522377593,5.60946949,2288.2,2287.7,8.74217]
[1726522378058,5.60946949,2288.2,2287.8,0.09040311]
[1726522378393,5.60946949,2288.2,2287.7,8.74217]
[1726522378548,5.60946949,2288.2,2287.9,0.09027026]
[1726522378883,5.60946949,2288.2,2288.0,0.09013742]
[1726522379183,6.84288,2288.3,2287.8,4.37086]
[1726522379346,6.84288,2288.3,2288.1,0.09000458]
[1726522379545,6.84288,2288.3,2287.9,4.37081]
[1726522379794,9.84288,2288.3,2288.2,0.08996656]
[1726522379994,11.14936544,2288.3,2287.9,4.37081]
[1726522380149,11.14936544,2288.3,2288.2,0.08996656]
[1726522380719,11.14936544,2288.3,2287.9,4.37081]
[1726522381013,11.14936544,2288.3,2288.2,0.08996656]
[1726522381211,11.14936544,2288.3,2287.9,4.37081]
[1726522381527,5.4728,2288.3,2288.0,4.37055]
[1726522381814,3.0,2288.4,2288.0,4.46075221]
[1726522382013,3.0,2288.4,2288.0,4.46077221]
[1726522383199,7.36988,2288.4,2288.0,4.46077221]
[1726522383676,3.7264063,2288.4,2288.0,4.46077221]
[1726522384716,0.45742087,2288.3,2288.0,4.46077221]
[1726522385394,0.45742087,2288.3,2288.1,4.37043]
[1726522385775,0.45742087,2288.3,2288.2,0.08996656]
[1726522386789,0.45742087,2288.3,2288.2,4.46020656]
[1726522387100,0.45742087,2288.3,2288.2,0.08996656]
[1726522388430,3.0141999,2288.5,2288.2,0.08996656]
[1726522388733,0.45745255,2288.3,2288.2,0.08996656]
[1726522401346,0.45745255,2288.3,2288.2,4.46020656]
[1726522402357,0.45745255,2288.3,2288.2,8.83044656]
[1726522409087,0.45745255,2288.3,2288.2,10.78064656]
[1726522409265,0.0153363,2288.5,2288.4,8.73972]
[1726522409608,0.0153363,2288.5,2288.4,8.82932184]